bitfinex-derivatives/quotes_ETHF0:USTF0_20240910
["timestamp","ask_amount","ask_price","bid_price","bid_amount"]
[1725955769439,0.416,2368.3,2367.7,3.3727]
[1725955769646,0.416,2368.3,2368.1,0.42224]
[1725955770155,0.416,2368.3,2368.2,0.42224]
[1725955771367,0.42217,2368.6,2368.2,3.66224]
[1725955771544,0.8022,2369.0,2368.5,3.24]
[1725955771745,0.8022,2369.0,2368.9,0.42211]
[1725955771946,0.8022,2369.0,2368.6,0.21138534]
[1725955771947,1.10316922,2369.5,2368.5,4.29546]
[1725955772243,2.20828044,2369.8,2369.3,0.42204]
[1725955772244,0.8022,2369.4,2369.3,0.42204]
[1725955773654,0.8022,2369.4,2368.9,0.1333]
[1725955773655,0.8022,2369.4,2369.2,0.42205]
[1725955774162,0.8022,2369.4,2369.3,0.42204]
[1725955774349,0.8022,2369.4,2368.9,0.1333]
[1725955774350,0.8022,2369.4,2369.2,0.42205]
[1725955774544,0.8022,2369.4,2369.1,0.42207]
[1725955775257,0.8022,2369.4,2369.2,0.42206]
[1725955775756,0.8022,2369.4,2368.8,3.24]
[1725955775757,0.8022,2369.4,2369.3,0.42204]
[1725955776254,0.8022,2369.4,2368.8,3.24]
[1725955776255,0.8022,2369.4,2369.2,0.42205]
[1725955777058,0.8022,2369.4,2369.3,0.42204]
[1725955778154,0.3983,2369.7,2369.5,0.42199]
[1725955779556,0.3983,2369.7,2369.6,0.42199]
[1725955779943,0.3983,2369.7,2369.4,0.42202]
[1725955780344,0.82028,2369.7,2369.4,0.42202]
[1725955780654,0.3983,2369.7,2369.4,0.42202]
[1725955781550,0.3983,2369.7,2369.3,0.42203]
[1725955781755,0.3983,2369.7,2369.4,0.42202]
[1725955782056,0.82027,2369.7,2369.3,0.42202]
[1725955782548,0.82028,2369.7,2369.3,0.42202]
[1725955782943,0.82028,2369.7,2369.4,0.42202]
[1725955783152,0.82028,2369.7,2368.8,4.2953]
[1725955783153,0.3983,2369.7,2368.8,4.2953]
[1725955783349,0.3983,2369.7,2369.2,0.42205]
[1725955783350,0.42201,2369.5,2369.2,0.42205]
[1725955783553,0.42201,2369.5,2368.8,4.2953]
[1725955783554,0.3983,2369.7,2369.3,0.42203]
[1725955783759,0.42199,2369.6,2369.3,0.42203]
[1725955785052,0.3983,2369.7,2369.2,0.42205]
[1725955785053,0.42202,2369.5,2369.2,0.42205]
[1725955785251,0.42202,2369.4,2369.1,0.42206]
[1725955785455,0.3982,2369.3,2369.1,0.42207]
[1725955785851,0.3901,2369.2,2369.1,0.42207]
[1725955788753,0.3901,2369.2,2368.6,1.18869]
[1725955788951,0.81216,2369.2,2368.9,0.4221]
[1725955789152,0.42208,2369.1,2368.7,0.42214]
[1725955789353,0.42211,2369.0,2368.7,0.42214]
[1725955789552,0.42211,2369.0,2368.3,5.13754]
[1725955789553,0.3901,2369.2,2369.1,0.42208]
[1725955789951,0.3901,2369.2,2368.7,1.05537]
[1725955790254,0.3901,2369.2,2369.1,0.42208]
[1725955790456,0.3901,2369.2,2368.6,0.1331]
[1725955790748,0.3901,2369.2,2368.9,0.4221]
[1725955790956,0.3901,2369.2,2369.0,0.42209]
[1725955790957,0.81217,2369.2,2369.0,0.42209]
[1725955791156,0.81217,2369.2,2368.5,4.29546]
[1725955791157,0.3901,2369.2,2368.5,4.29546]
[1725955791853,0.3901,2369.2,2369.1,0.42208]
[1725955793056,0.42202,2369.5,2368.9,1.05528]
[1725955793253,1.2481,2369.6,2369.4,0.42201]
[1725955793456,0.8344,2369.6,2369.5,0.422]
[1725955794356,0.4136,2369.6,2369.5,0.422]
[1725955795561,0.4136,2369.6,2368.9,5.13725]
[1725955795758,0.83559,2369.6,2369.4,0.42202]
[1725955796159,0.4136,2369.6,2369.5,0.422]
[1725955796362,0.4136,2369.6,2369.4,0.42201]
[1725955796567,0.4136,2369.6,2368.9,5.13725]
[1725955796568,0.4136,2369.6,2369.5,0.422]
[1725955796768,0.4136,2369.6,2369.4,0.42201]
[1725955796959,0.83559,2369.6,2369.4,0.42201]
[1725955797265,0.4136,2369.6,2369.4,0.42201]
[1725955797655,0.83559,2369.6,2369.4,0.42201]
[1725955798159,1.93875922,2369.6,2369.4,0.42201]
[1725955798763,1.51676922,2369.6,2369.0,1.05524]
[1725955798965,0.4136,2369.6,2369.5,0.422]
[1725955799358,1.10316922,2369.8,2369.7,0.42197]
[1725955799553,2.59258044,2370.0,2369.9,0.42193]
[1725955799554,1.10316922,2370.0,2369.9,0.42193]
[1725955799767,1.10316922,2370.0,2369.6,1.26332004]
[1725955799768,1.10316922,2370.4,2369.8,1.05485]
[1725955800159,2.0783827,2370.5,2369.8,0.2130067]
[1725955800160,1.10316922,2370.5,2369.8,0.2130067]
[1725955800355,1.52500922,2370.4,2370.1,0.42189]
[1725955800856,1.52503922,2370.3,2370.0,0.4219]
[1725955801166,1.6565527,2370.5,2370.1,0.42188]
[1725955801167,1.52501922,2370.4,2370.1,0.42188]
[1725955801369,1.10316922,2370.3,2370.1,0.42188]
[1725955801576,0.42192,2370.0,2369.7,0.42196]
[1725955801757,0.42193,2370.0,2369.7,0.42197]
[1725955801964,0.8127,2369.9,2369.4,0.33690074]
[1725955802163,0.8127,2369.9,2369.5,0.422]
[1725955802364,1.91586922,2369.9,2369.2,0.47870157]
[1725955802563,1.10316922,2369.8,2369.4,0.42201]
[1725955802767,1.52512922,2369.8,2369.4,0.42201]
[1725955802968,1.52512922,2369.8,2369.6,0.42199]
[1725955802969,1.10316922,2369.7,2369.6,0.42199]
[1725955803171,1.10316922,2369.7,2369.1,3.84027664]
[1725955803172,1.91586922,2369.9,2369.4,1.05504]
[1725955803470,1.91586922,2369.9,2369.8,0.42195]
[1725955804465,1.91406813,2369.9,2369.8,0.42195]
[1725955804665,7.9140777,2369.9,2369.1,0.60027664]
[1725955804981,2.75800398,2369.6,2369.4,0.42202]
[1725955805168,1.10145128,2369.5,2369.1,0.60027664]
[1725955805473,1.6565527,2369.6,2369.5,0.422]
[1725955805474,1.10145128,2369.6,2369.5,0.422]
[1725955805858,1.6565527,2369.6,2369.5,0.422]
[1725955806667,1.10211266,2369.6,2369.5,0.422]
[1725955807570,1.10211266,2369.7,2369.6,0.42199]
[1725955807971,1.6565527,2369.8,2369.6,0.42199]
[1725955808473,1.6565527,2369.7,2369.6,0.42199]
[1725955809173,1.10238929,2369.7,2369.6,0.42199]
[1725955809378,1.6565527,2369.7,2369.6,0.42199]
[1725955809968,1.6565527,2369.7,2369.5,0.42199]
[1725955810175,1.10252021,2369.6,2369.5,0.42199]
[1725955810475,1.10248428,2369.7,2369.6,0.42199]
[1725955810672,1.10248428,2369.7,2369.5,0.422]
[1725955810876,1.10248428,2369.6,2369.2,1.05515]
[1725955811176,1.10248428,2369.6,2369.5,0.422]
[1725955811570,0.42199,2369.6,2369.4,0.42201]
[1725955811769,1.10253526,2369.6,2369.4,0.42201]
[1725955811969,1.52452526,2369.6,2369.0,7.322]
[1725955812370,1.10253526,2369.5,2369.0,7.322]
[1725955812571,1.52455526,2369.4,2369.2,0.42205]
[1725955812870,0.4261,2369.3,2369.2,0.42205]
[1725955813273,1.52863526,2369.3,2369.2,0.42205]
[1725955813978,0.4261,2369.3,2369.2,0.42205]
[1725955814379,1.52863526,2369.3,2369.2,0.42205]
[1725955815376,2.0826527,2369.3,2369.2,0.42205]
[1725955816775,0.4261,2369.3,2369.2,0.42205]
[1725955817283,0.84815,2369.3,2369.1,0.42207]
[1725955817469,0.42206,2369.2,2369.0,0.42208]
[1725955817671,3.05643044,2369.3,2369.1,0.42208]
[1725955817876,0.4261,2369.3,2369.2,0.42206]
[1725955818684,0.4261,2369.3,2368.8,1.05533]
[1725955818886,0.4261,2369.3,2369.1,0.42206]
[1725955819180,0.4261,2369.3,2369.2,0.42206]
[1725955822983,0.397,2369.7,2369.1,1.05517]
[1725955823181,0.4055,2369.6,2369.5,0.422]
[1725955823784,0.42195,2369.9,2369.3,4.29509]
[1725955823985,0.42195,2369.9,2369.7,0.42196]
[1725955824577,0.42194,2369.9,2369.7,0.42196]
[1725955824779,0.8006,2370.0,2369.9,0.42193]
[1725955825080,2.32101211,2370.0,2369.9,0.42193]
[1725955825289,0.4055,2370.0,2369.9,0.42193]
[1725955826179,0.4055,2370.0,2369.9,3.05193]
[1725955826580,3.31412053,2370.2,2369.9,2.63]
[1725955826782,3.31412053,2370.2,2370.1,0.4219]
[1725955827280,3.31412053,2370.2,2370.0,0.42191]
[1725955827488,3.73600053,2370.2,2369.9,0.42192]
[1725955828085,3.31412053,2370.2,2370.0,0.42191]
[1725955828586,3.31412053,2370.2,2370.1,0.4219]
[1725955830179,3.15190646,2370.4,2370.3,0.42186]
[1725955830383,2.59954344,2370.4,2370.3,0.42186]
[1725955831277,2.59954344,2370.4,2370.0,0.38311026]
[1725955831480,1.65448093,2370.1,2370.0,0.42191]
[1725955832385,2.62853344,2370.2,2370.0,0.42191]
[1725955832581,2.60744344,2370.1,2370.0,0.42191]
[1725955833089,1.65459778,2370.3,2370.2,0.42188]
[1725955833383,1.10292386,2370.4,2370.3,0.42186]
[1725955835581,1.10258365,2370.4,2370.1,4.36533]
[1725955835782,1.10258365,2370.3,2370.2,0.42188]
[1725955835986,1.10258365,2370.4,2370.3,0.42186]
[1725955836184,1.10258365,2370.4,2369.9,3.4168]
[1725955836185,2.07573366,2370.4,2369.9,3.4168]
[1725955836388,1.49711255,2370.3,2370.2,0.42187]
[1725955836578,1.49722282,2370.3,2370.2,0.42187]
[1725955836777,2.04848366,2370.3,2370.2,0.42187]
[1725955837281,1.49722487,2370.3,2370.2,0.42187]
[1725955837474,2.04848366,2370.3,2370.2,0.42187]
[1725955839098,2.47035366,2370.3,2370.1,0.42189]
[1725955839283,2.06248366,2370.2,2370.1,0.42189]
[1725955839590,2.06248366,2370.2,2369.5,0.2112]
[1725955839591,2.06248366,2370.2,2369.4,4.082]
[1725955839784,1.10287214,2369.7,2369.2,5.13711]
[1725955839987,1.49827214,2369.6,2369.5,0.422]
[1725955840181,1.10287214,2369.7,2369.6,0.42199]
[1725955841686,1.65388366,2369.7,2369.6,0.63299867]
[1725955841891,1.1030091,2369.8,2369.7,0.42197]
[1725955842290,1.4984091,2369.9,2369.8,0.42195]
[1725955842496,1.4984114,2369.9,2369.8,0.42195]
[1725955842690,1.49842664,2369.9,2369.8,0.42195]
[1725955843092,1.10302664,2369.9,2369.8,0.42195]
[1725955843298,1.10296974,2370.0,2369.9,0.42193]
[1725955843491,1.65388366,2370.0,2369.9,0.42193]
[1725955845599,1.10319539,2370.0,2369.9,0.42193]
[1725955845795,2.05158366,2370.1,2370.0,0.42191]
[1725955846503,2.60434344,2370.1,2369.9,0.42192]
[1725955846692,0.42191,2370.0,2369.9,0.42192]
[1725955846888,0.42195,2369.9,2369.3,4.72771]
[1725955847086,1.10333757,2369.7,2369.6,0.42199]
[1725955847297,1.65500636,2369.7,2369.6,0.42199]
[1725955847491,2.08500636,2369.7,2369.6,0.42199]
[1725955847899,0.43,2369.7,2369.6,0.42199]
[1725955848096,0.43,2369.7,2369.5,0.42199]
[1725955848297,1.65514512,2369.6,2369.1,5.13717]
[1725955848503,0.43,2369.7,2369.4,0.42201]
[1725955848504,2.06454512,2369.5,2369.4,0.42201]
[1725955849598,1.51277721,2369.5,2369.4,0.42201]
[1725955850100,1.10337721,2369.7,2369.5,1.05502]
[1725955850310,1.52807721,2369.8,2369.6,2.63]
[1725955850601,1.52807721,2369.8,2369.7,0.42197]
[1725955850910,2.07984512,2369.8,2369.7,0.42197]
[1725955851589,2.07984512,2369.8,2369.4,2.63]
[1725955851793,2.06064512,2369.7,2369.6,0.42197]
[1725955851989,2.06071388,2369.7,2369.6,0.42197]
[1725955852203,0.4055,2369.7,2369.6,0.42197]
[1725955853806,2.06085541,2369.7,2369.6,0.42197]
[1725955854605,2.48283541,2369.7,2369.5,0.42199]
[1725955854800,2.04951905,2369.6,2369.5,0.42199]
[1725955855004,0.3941,2369.6,2369.5,0.42199]
[1725955855697,0.3941,2369.6,2369.3,2.63]
[1725955855898,2.62866344,2369.5,2369.3,0.42203]
[1725955856200,2.2074977,2369.4,2369.3,0.42203]
[1725955856396,2.6040977,2369.4,2369.3,0.42203]
[1725955856597,2.6040977,2369.4,2369.3,3.05203]
[1725955856796,2.05204521,2369.4,2369.3,3.05203]
[1725955860912,0.42204,2369.3,2369.2,0.42205]
[1725955861100,1.65538511,2369.3,2369.2,0.42205]
[1725955861297,2.07742511,2369.3,2369.2,0.42205]
[1725955861505,2.07742511,2369.3,2369.0,2.63]
[1725955861506,2.07742511,2369.3,2369.1,0.42206]
[1725955861704,1.53359379,2369.2,2369.1,0.42206]
[1725955862102,1.53358665,2369.2,2369.1,0.42206]
[1725955863504,2.08538511,2369.2,2369.1,0.42206]
[1725955864008,1.53369483,2369.2,2369.1,0.42206]
[1725955868610,2.50744511,2369.2,2369.1,0.42206]
[1725955869313,2.08538511,2369.2,2369.0,0.42209]
[1725955869607,2.06608511,2369.1,2369.0,0.42209]
[1725955870911,1.51383341,2369.1,2369.0,0.42209]
[1725955871714,2.48816511,2369.1,2368.9,0.4221]
[1725955871908,3.14163511,2369.0,2368.4,4.082]
[1725955872212,1.1026717,2368.5,2368.4,0.4222]
[1725955872521,1.1026717,2368.5,2368.3,0.42221]
[1725955872522,2.0768427,2368.5,2368.3,0.42221]
[1725955872818,2.0768427,2368.5,2367.9,2.63]
[1725955872819,2.35585083,2368.4,2367.9,2.63]
[1725955873013,1.52488083,2368.3,2367.9,2.63]
[1725955873217,1.52488083,2368.3,2368.0,0.42226]
[1725955873712,1.52488083,2368.3,2367.7,0.413]
[1725955873713,1.10265083,2368.1,2367.7,0.42231]
[1725955873926,1.505053,2368.0,2367.8,0.42231]
[1725955874110,0.403,2368.0,2367.9,0.42229]
[1725955874416,0.403,2368.0,2367.8,0.4223]
[1725955874614,0.403,2368.0,2367.5,2.63]
[1725955874818,0.403,2368.0,2367.9,0.42229]
[1725955877714,0.403,2368.0,2367.8,0.4223]
[1725955878122,0.3867,2367.9,2367.3,3.1711]
[1725955878317,0.7661,2367.9,2367.6,0.42233]
[1725955878618,2.63,2367.8,2367.5,0.42235]
[1725955879012,3.05231,2367.8,2367.4,0.42236]
[1725955879613,2.63,2367.6,2367.3,0.42239]
[1725955879919,0.81077,2367.5,2367.0,4.082]
[1725955880121,0.7821,2367.4,2367.0,4.082]
[1725955880423,0.7821,2367.4,2366.9,2.83941954]
[1725955880619,0.7821,2367.4,2367.3,0.4224]
[1725955881523,0.7821,2367.4,2367.2,0.42241]
[1725955881918,0.7821,2367.4,2367.3,0.4224]
[1725955882823,0.42232,2367.8,2367.1,2.63]
[1725955883016,0.7706,2367.8,2367.5,0.42235]
[1725955883722,1.19291,2367.8,2367.5,0.42235]
[1725955883915,0.42233,2367.7,2367.4,0.42237]
[1725955884110,0.42234,2367.6,2367.3,0.42239]
[1725955884311,2.63,2367.6,2367.2,0.4224]
[1725955884518,0.42237,2367.5,2367.2,0.42241]
[1725955884716,0.4021,2367.4,2367.2,0.42241]
[1725955884916,0.3916,2367.3,2367.2,0.42241]
[1725955885517,1.102053,2368.1,2367.2,1.05604]
[1725955885826,2.63,2368.3,2367.8,0.42231]
[1725955885827,0.3795,2367.9,2367.8,0.42231]
[1725955888626,0.3872,2368.2,2368.1,0.42225]
[1725955889019,0.3872,2368.2,2368.0,0.42226]
[1725955889222,0.3872,2368.2,2367.9,0.0445]
[1725955889529,0.80945,2368.2,2368.0,0.42227]
[1725955889728,0.80944,2368.2,2368.0,0.42227]
[1725955890030,0.3872,2368.2,2368.0,0.42227]
[1725955890831,0.3872,2368.2,2368.1,0.42225]
[1725955891834,0.3872,2368.2,2368.0,0.42226]
[1725955892029,0.3872,2368.2,2368.0,0.42227]
[1725955892232,0.3872,2368.2,2368.0,0.42226]
[1725955892828,0.3872,2368.2,2368.1,0.42225]
[1725955893036,0.3872,2368.2,2368.0,0.42227]
[1725955893226,0.3872,2368.2,2368.1,0.42225]
[1725955893836,0.8018,2368.4,2368.3,0.42222]
[1725955894033,0.42223,2368.3,2368.0,0.42227]
[1725955894233,2.9983,2368.3,2367.9,0.0445]
[1725955894435,3.42052,2368.3,2368.1,0.42224]
[1725955894626,3.42052,2368.3,2368.1,0.42225]
[1725955895041,2.9983,2368.3,2368.1,0.42225]
[1725955895232,2.9983,2368.3,2368.2,0.42224]
[1725955895233,0.3683,2368.3,2368.2,0.42224]
[1725955895441,0.3683,2368.3,2368.1,0.42224]
[1725955895633,0.3683,2368.3,2368.2,0.42224]
[1725955896032,0.3683,2368.3,2368.1,0.42224]
[1725955896228,0.42224,2368.2,2368.0,0.42226]
[1725955896433,0.79053,2368.3,2368.1,0.42225]
[1725955896937,0.79052,2368.3,2368.1,0.42225]
[1725955897335,4.173,2369.7,2368.1,8.63]
[1725955897639,0.4011,2369.3,2368.9,2.63]
[1725955897842,0.4011,2369.3,2369.2,0.42206]
[1725955898533,0.4011,2369.3,2368.7,2.7139]
[1725955898733,0.4011,2369.3,2368.9,0.4221]
[1725955898734,0.378,2369.2,2368.9,0.4221]
[1725955899042,0.378,2369.2,2369.0,0.42209]
[1725955899541,0.378,2369.2,2368.7,2.63]
[1725955899933,0.378,2369.2,2369.0,0.42208]
[1725955900243,0.7779,2369.2,2369.0,0.42208]
[1725955900540,0.7779,2369.2,2369.1,0.42208]
[1725955900838,0.7779,2369.2,2369.0,0.42208]
[1725955901141,0.7779,2369.2,2368.7,2.63]
[1725955901142,0.7779,2369.2,2369.1,0.42208]
[1725955901336,0.7779,2369.2,2369.0,0.42208]
[1725955901536,0.7779,2369.2,2369.1,0.42208]
[1725955902732,0.3865,2369.7,2369.5,0.42199]
[1725955902932,0.7582,2369.7,2369.1,2.63]
[1725955903140,0.7582,2369.7,2369.6,0.42199]
[1725955903534,0.3717,2369.7,2369.6,0.42199]
[1725955903939,0.3865,2370.2,2369.9,0.42192]
[1725955904130,0.7502,2370.1,2369.5,2.63]
[1725955904335,0.7502,2370.1,2369.9,0.42193]
[1725955904536,0.7502,2370.1,2369.5,2.63]
[1725955904732,0.7502,2370.1,2369.9,0.42192]
[1725955905442,0.7502,2370.1,2370.0,0.42191]
[1725955906346,0.7502,2370.1,2369.9,0.42192]
[1725955909240,0.7502,2370.1,2369.7,2.63]
[1725955909441,0.7502,2370.1,2369.8,0.42195]
[1725955910244,0.7502,2370.1,2369.7,2.63]
[1725955910245,0.7502,2370.1,2369.9,0.42193]
[1725955910954,0.7502,2370.1,2369.8,0.42194]
[1725955912042,0.7502,2370.1,2369.5,2.7137]
[1725955912244,0.7502,2370.1,2369.8,0.42195]
[1725955912245,1.17211,2370.1,2369.8,0.42195]
[1725955913244,1.17211,2370.1,2369.5,2.63]
[1725955913245,0.7502,2370.1,2369.7,0.42195]
[1725955913548,0.42192,2370.0,2369.7,0.42195]
[1725955913740,0.7502,2370.1,2369.4,4.082]
[1725955913942,1.05479,2370.0,2369.3,2.63]
[1725955914138,0.42197,2369.7,2369.4,0.42202]
[1725955914344,0.7789,2369.6,2369.4,0.42202]
[1725955916047,0.4219,2370.1,2369.5,2.63]
[1725955916355,0.3824,2369.9,2369.7,0.42196]
[1725955916649,0.3824,2369.9,2369.8,0.42195]
[1725955917444,0.3824,2369.9,2369.5,2.63]
[1725955917839,0.3824,2369.9,2369.7,0.42196]
[1725955918047,0.3824,2369.9,2369.7,0.42197]
[1725955918443,0.3824,2369.9,2369.6,0.42198]
[1725955918649,0.42195,2369.8,2369.6,0.42198]
[1725955919248,0.42195,2369.8,2369.3,2.7134]
[1725955919855,0.42195,2369.8,2369.6,0.42198]
[1725955920353,0.3375,2369.7,2369.6,0.42198]
[1725955920843,0.3375,2369.7,2369.3,2.7134]
[1725955921044,0.3375,2369.7,2369.6,0.42199]
[1725955922343,0.3375,2369.7,2369.5,0.422]
[1725955922545,0.3745,2369.6,2369.5,0.422]
[1725955923957,0.79649,2369.6,2369.4,0.42202]
[1725955924156,0.422,2369.5,2369.3,0.42203]
[1725955924460,0.3836,2369.4,2369.1,0.42206]
[1725955924749,0.3836,2369.4,2368.9,6.712]
[1725955924750,0.42204,2369.3,2369.0,0.42209]
[1725955924955,0.42204,2369.3,2369.1,0.42207]
[1725955925754,0.3836,2369.4,2368.7,2.63]
[1725955925961,0.42211,2369.0,2368.8,0.42212]
[1725955926260,0.3644,2368.9,2368.8,0.42212]
[1725955926959,0.3644,2368.9,2368.7,2.63]
[1725955927255,0.7585,2368.9,2368.7,3.05214]
[1725955927766,1.18062,2368.9,2368.7,3.05214]
[1725955928054,0.7585,2368.9,2368.7,3.05214]
[1725955928354,0.7585,2368.9,2368.3,2.63]
[1725955928556,0.7585,2368.9,2367.7,8.02223854]
[1725955928557,0.42217,2368.6,2368.1,2.63]
[1725955928757,0.42217,2368.6,2368.4,0.4222]
[1725955929154,1.05537,2368.7,2368.1,2.63]
[1725955929358,0.42219,2368.5,2368.3,0.42221]
[1725955929550,1.05537,2368.7,2368.1,2.63]
[1725955929751,0.42217,2368.6,2368.1,2.63]
[1725955930060,0.42217,2368.6,2368.3,0.4222]
[1725955930756,0.4006,2368.8,2368.3,2.63]
[1725955931055,0.82274,2368.8,2368.5,0.42217]
[1725955931253,0.82274,2368.8,2368.3,2.63]
[1725955931254,0.42215,2368.7,2368.3,2.63]
[1725955931461,0.4006,2368.8,2368.3,0.42221]
[1725955931664,4.08595,2368.8,2368.3,0.42221]
[1725955931953,0.42219,2368.5,2368.3,0.42221]
[1725955932155,0.42219,2368.5,2368.2,0.42223]
[1725955932156,0.3793,2368.4,2368.2,0.42223]
[1725955932345,0.7543,2368.4,2368.2,0.42223]
[1725955933152,0.7543,2368.4,2368.3,0.42222]
[1725955933356,0.3793,2368.4,2368.3,0.42222]
[1725955933960,0.3377,2368.4,2368.1,2.63]
[1725955934156,0.3377,2368.4,2368.3,3.05222]
[1725955934754,0.42222,2368.3,2368.1,3.05225]
[1725955934954,0.42222,2368.3,2368.0,0.42225]
[1725955934955,0.3956,2368.3,2368.0,0.42225]
[1725955935155,1.20523,2368.3,2368.1,0.42225]
[1725955936167,1.20523,2368.3,2367.9,2.63]
[1725955936168,0.783,2368.3,2367.9,2.63]
[1725955936660,0.783,2368.3,2368.2,0.42224]
[1725955937262,0.783,2368.3,2367.9,2.63]
[1725955937460,1.20523,2368.3,2367.9,2.63]
[1725955937871,1.20523,2368.3,2368.1,0.42225]
[1725955938558,0.3377,2368.4,2368.1,2.63]
[1725955938758,0.75991,2368.4,2368.2,0.42222]
[1725955939267,0.75991,2368.4,2368.3,0.42222]
[1725955939566,0.75991,2368.4,2368.2,0.42222]
[1725955939865,0.75991,2368.4,2368.1,2.63]
[1725955939866,0.7599,2368.4,2368.3,0.42222]
[1725955940258,0.3377,2368.4,2368.3,0.42222]
[1725955940465,0.7599,2368.4,2368.2,0.42223]
[1725955940863,0.7599,2368.4,2368.2,0.42222]
[1725955941668,0.7599,2368.4,2368.2,0.42223]
[1725955941669,0.42222,2368.3,2368.2,0.42223]
[1725955941864,0.75991,2368.4,2368.2,0.42223]
[1725955942063,0.42222,2368.3,2368.1,3.0278]
[1725955942865,0.42222,2368.3,2368.2,0.42224]
[1725955943055,1.05555,2368.3,2367.9,0.42228]
[1725955943257,0.42226,2368.1,2368.0,0.42227]
[1725955944459,0.42225,2368.2,2368.0,0.42227]
[1725955944659,0.42227,2368.1,2368.0,0.42227]
[1725955944969,0.3798,2368.1,2368.0,0.42227]
[1725955945557,0.3798,2368.1,2367.8,5.93]
[1725955945762,0.80843,2368.3,2368.0,2.63]
[1725955945972,0.80843,2368.3,2368.1,0.42225]
[1725955946262,0.42224,2368.2,2368.1,0.42225]
[1725955946466,0.42225,2368.1,2368.0,0.42226]
[1725955946668,0.42225,2368.2,2368.0,0.42226]
[1725955947573,0.42225,2368.1,2368.0,0.42226]
[1725955947871,0.42225,2368.2,2368.0,0.42226]
[1725955948065,0.3862,2368.3,2367.8,5.93]
[1725955948066,0.42225,2368.1,2367.8,5.93]
[1725955948264,0.3862,2368.3,2367.8,5.93]
[1725955948464,0.42225,2368.2,2368.0,0.42226]
[1725955949267,0.42225,2368.2,2367.8,2.63]
[1725955949268,0.3988,2368.1,2367.5,6.712]
[1725955949454,0.3988,2368.1,2367.2,1.056]
[1725955949455,1.05573,2367.9,2367.3,3.1011]
[1725955949658,0.42234,2367.7,2367.5,0.42235]
[1725955949858,0.82472,2367.8,2367.6,0.42234]
[1725955950065,0.82472,2367.8,2367.3,3.1011]
[1725955950066,0.42233,2367.7,2367.3,3.1011]
[1725955950374,0.4223,2367.9,2367.8,0.42231]
[1725955950759,0.3815,2368.0,2367.8,0.42231]
[1725955950959,0.80378,2368.0,2367.5,1.05591]
[1725955951164,0.80378,2368.0,2367.8,0.4223]
[1725955951363,0.42229,2367.9,2367.8,0.4223]
[1725955952471,0.3815,2368.0,2367.4,2.63]
[1725955952770,0.42232,2367.7,2367.6,0.42233]
[1725955953363,0.42232,2367.8,2367.6,0.42233]
[1725955953764,0.42234,2367.7,2367.6,0.42234]
[1725955954064,0.42237,2367.5,2367.4,0.42238]
[1725955954267,0.3868,2367.6,2367.3,2.63]
[1725955954468,0.3742,2367.4,2367.3,3.05239]
[1725955955764,0.7121,2367.4,2367.3,3.05239]
[1725955956771,1.13448,2367.4,2367.3,2.63]
[1725955956959,0.4224,2367.3,2367.1,3.05243]
[1725955957167,0.7121,2367.4,2367.1,2.63]
[1725955957363,0.42241,2367.2,2367.1,2.63]
[1725955957568,0.42241,2367.2,2367.1,3.05243]
[1725955957767,1.76807,2367.4,2366.9,6.35245]
[1725955958071,0.3995,2367.1,2367.0,0.42245]
[1725955958868,0.82193,2367.1,2366.9,3.05246]
[1725955960865,0.3995,2367.1,2366.6,0.4646]
[1725955961067,0.42248,2366.9,2366.6,0.42251]
[1725955961266,0.4003,2366.8,2366.6,0.42251]
[1725955961472,0.82279,2366.8,2366.6,0.42252]
[1725955961773,0.42251,2366.7,2366.5,3.05253]
[1725955961967,0.3748,2366.7,2366.5,3.05253]
[1725955962961,0.3748,2366.7,2366.6,0.42252]
[1725955965070,0.3748,2366.7,2366.5,2.63]
[1725955965276,0.3748,2366.7,2366.5,3.05253]
[1725955965868,0.3748,2366.7,2366.6,0.42252]
[1725955966071,0.3748,2366.7,2366.3,3.05256]
[1725955966271,0.3748,2366.7,2366.3,0.42257]
[1725955966570,0.42255,2366.5,2366.3,0.42257]
[1725955967073,0.42255,2366.5,2366.2,4.50458]
[1725955967378,0.42257,2366.3,2366.2,4.082]
[1725955967577,0.42257,2366.3,2366.1,0.42261]
[1725955967881,0.7662,2366.2,2366.1,0.42261]
[1725955969873,0.3858,2366.2,2366.1,0.42261]
[1725955973777,0.3804,2366.6,2366.0,2.83920431]
[1725955973972,3.68609,2367.1,2366.5,3.05254]
[1725955973973,1.05619,2366.9,2366.5,3.05254]
[1725955974173,0.42251,2366.7,2366.6,0.42252]
[1725955974580,6.0,2366.7,2366.1,4.4764]
[1725955974778,0.42262,2366.1,2365.9,0.42263]
[1725955974981,0.18515735,2366.0,2365.9,0.42265]
[1725955978776,0.3762,2366.1,2366.0,0.42263]
[1725955979088,2.63,2366.6,2366.0,0.42263]
[1725955979089,1.0561,2367.1,2366.3,1.05643]
[1725955979290,0.82219,2366.8,2366.6,0.42251]
[1725955979583,0.3997,2366.8,2366.7,0.4225]
[1725955979979,0.3997,2366.8,2366.5,5.93]
[1725955979980,0.82219,2366.8,2366.5,5.93]
[1725955980182,0.82219,2366.8,2366.6,0.42252]
[1725955980379,0.82219,2366.8,2366.5,5.93]
[1725955980380,0.8222,2366.8,2366.5,6.35253]
[1725955980580,0.3837,2366.7,2366.6,0.42252]
[1725955980977,0.80621,2366.7,2366.5,6.35254]
[1725955981185,0.8062,2366.7,2366.5,0.42254]
[1725955981774,0.42253,2366.6,2366.4,0.42254]
[1725955981978,0.42254,2366.5,2366.1,3.0198]